fUSD/lending_fUSD_20260323
["ID","MTS","AMOUNT","RATE_DAILY","PERIOD"]
[408777555,1774233034429,-1095.95,0.00012242,2]
[408777556,1774233034438,-200.0,0.00012253,2]
[408777557,1774233034449,-200.0,0.00012253,2]
[408777558,1774233034458,-200.0,0.00012253,2]
[408777559,1774233034467,-200.0,0.00012253,2]
[408777560,1774233034477,-646.80531615,0.000123,2]
[408777561,1774233034486,-250.0,0.00012328,2]
[408777562,1774233034500,-151.0,0.00012373,2]
[408777563,1774233034510,-200.0,0.00012376,2]
[408777564,1774233034520,-200.0,0.00012376,2]
[408777565,1774233034530,-200.0,0.00012376,2]
[408777566,1774233034540,-187.78006525,0.00012436,2]
[408777567,1774233034549,-1280.1,0.00012441,2]
[408777568,1774233034559,-177.84,0.000125,5]
[408777569,1774233034569,-200.0,0.000125,2]
[408777570,1774233034579,-200.0,0.000125,2]
[408777571,1774233034588,-1093.9249713,0.000125,10]
[408777572,1774233034598,-2640.74356685,0.000125,2]
[408777573,1774233034607,-1095.95,0.00012516,2]
[408777574,1774233034616,-940.45917401,0.00012516,2]
[408777575,1774233034627,-504.18834281,0.00012516,2]
[408777576,1774233034636,-500.0,0.0001252,5]
[408777577,1774233034646,-500.0,0.00012521,2]
[408777578,1774233034657,-390.8,0.00012522,30]
[408777579,1774233034667,-291.03718971,0.00012529,2]
[408777580,1774233034677,-500.0,0.0001253,5]
[408777581,1774233034687,-25121.33142322,0.00012539,2]
[408777582,1774233034697,-500.0,0.0001254,5]
[408777583,1774233034706,-500.0,0.0001255,5]
[408777584,1774233034716,-166.66,0.0001256,2]
[408777585,1774233034726,-152.0,0.00012565,3]
[408777586,1774233034736,-151.0,0.00012571,2]
[408777587,1774233034745,-151.0,0.00012571,2]
[408777588,1774233034755,-2000.0,0.00012638,2]
[408777589,1774233034766,-152.0,0.00012647,4]
[408777590,1774233034775,-166.67,0.00012687,2]
[408777591,1774233034786,-152.0,0.00012728,5]
[408777592,1774233034796,-181.85,0.00012766,2]
[408777593,1774233034806,-1095.99742713,0.0001279,2]
[408777594,1774233034815,-152.0,0.0001281,6]
[408777595,1774233034825,-168.1,0.00012875,2]
[408777596,1774233034834,-152.0,0.00012891,7]
[408777597,1774233034844,-1209.19,0.00012893,2]
[408777598,1774233034853,-9999.99,0.00012893,2]
[408777599,1774233034862,-150.99,0.00012893,2]
[408777600,1774233034871,-999.99,0.00012893,2]
[408777601,1774233034882,-150.99,0.00012893,2]
[408777602,1774233034891,-9999.99,0.00012893,2]
[408777603,1774233034902,-5357.82,0.00012893,2]
[408777604,1774233034912,-1537.95,0.00012893,2]
[408777605,1774233034922,-160.56,0.00012929,2]
[408777606,1774233034931,-152.0,0.00012973,8]
[408777607,1774233034941,-194.72792766,0.00012984,2]
[408777608,1774233034950,-250.0,0.00013,2]
[408777609,1774233034960,-7631.61831699,0.00013008,2]
[408777610,1774233034970,-166.66,0.00013021,2]
[408777611,1774233034980,-5383.07801527,0.0001305,2]
[408777612,1774233034989,-152.0,0.00013055,9]
[408777613,1774233035000,-2640.74356685,0.00013067,2]
[408777614,1774233035010,-12263.91236615,0.00013099,2]
[408777615,1774233035023,-12857.41905707,0.00013099,2]
[408777616,1774233035032,-159.3029,0.000131,2]
[408777617,1774233035043,-350.0,0.00013109,2]
[408777618,1774233035057,-152.0,0.00013136,10]
[408777619,1774233035067,-583.0,0.000132,2]
[408777620,1774233035076,-998.0,0.000132,2]
[408777621,1774233035087,-521.07,0.00013203,30]
[408777622,1774233035096,-152.0,0.00013218,11]
[408777623,1774233035107,-151.0,0.00013242,2]
[408777624,1774233035117,-152.0,0.00013299,12]
[408777625,1774233035127,-823.0,0.00013309,2]
[408777626,1774233035136,-736.0,0.00013309,2]
[408777627,1774233035146,-3292.0,0.00013309,2]
[408777628,1774233035157,-166.67,0.00013316,2]
[408777629,1774233035166,-181.85,0.00013374,2]
[408777630,1774233035176,-152.0,0.00013381,13]
[408777631,1774233035186,-261.75196317,0.00013417,2]
[408777632,1774233035195,-3240.0,0.00013425,2]
[408777633,1774233035205,-231.0,0.00013442,2]
[408777634,1774233035214,-3223.0,0.00013444,2]
[408777635,1774233035224,-231.0,0.00013458,2]
[408777636,1774233035233,-152.0,0.00013462,14]
[408777637,1774233035243,-3223.0,0.00013482,2]
[408777638,1774233035252,-3223.0,0.00013483,2]
[408777639,1774233035262,-300.0,0.000135,2]
[408777640,1774233035272,-356.41365572,0.00013504,2]
[408777641,1774233035281,-231.0,0.00013506,2]
[408777642,1774233035292,-231.0,0.00013512,2]
[408777643,1774233035301,-3223.0,0.00013513,2]
[408777644,1774233035310,-201.93286099,0.00013532,2]
[408777645,1774233035320,-3207.8898433,0.00013536,2]
[408777646,1774233035331,-3918.9191129,0.00013537,2]
[408777647,1774233035340,-152.0,0.00013544,15]
[408777648,1774233035352,-408.39121234,0.00013598,2]
[408777649,1774233035361,-152.0,0.00013626,16]
[408777650,1774233035371,-152.03777968,0.00013631,2]
[408777651,1774233035381,-2640.74356685,0.00013633,2]
[408777652,1774233035391,-25121.33142322,0.0001366,2]
[408777653,1774233035401,-151.0,0.00013681,2]
[408777654,1774233035410,-151.0,0.00013681,2]
[408777655,1774233035421,-1280.1,0.00013685,2]
[408777656,1774233035431,-500.0,0.00013697,5]
[408777657,1774233035440,-502.75901139,0.00013698,2]
[408777658,1774233035450,-500.0,0.00013698,2]
[408777659,1774233035460,-500.0,0.00013698,2]
[408777660,1774233035470,-490.0,0.00013698,2]
[408777661,1774233035480,-500.0,0.00013698,2]
[408777662,1774233035490,-500.0,0.00013698,2]
[408777663,1774233035500,-504.21415204,0.00013698,2]
[408777664,1774233035509,-500.0,0.00013698,2]
[408777665,1774233035519,-490.0,0.00013698,2]
[408777666,1774233035529,-500.0,0.00013698,2]
[408777667,1774233035538,-500.0,0.00013698,2]
[408777668,1774233035549,-500.0,0.00013698,2]
[408777669,1774233035558,-500.0,0.00013698,2]
[408777670,1774233035568,-500.0,0.00013698,2]
[408777671,1774233035577,-500.0,0.00013699,2]
[408777672,1774233035587,-200.0,0.00013699,2]
[408777673,1774233035601,-1204.77,0.00013699,2]
[408777674,1774233035611,-1014.83,0.00013699,2]
[408777675,1774233035620,-153.773105,0.00013699,2]
[408777676,1774233035630,-350.0,0.00013699,2]
[408777677,1774233035640,-350.0,0.00013699,2]
[408777678,1774233035650,-350.0,0.00013699,2]
[408777679,1774233035659,-350.0,0.00013699,2]
[408777680,1774233035669,-350.0,0.00013699,2]
[408777681,1774233035680,-350.0,0.00013699,2]
[408777682,1774233035690,-350.0,0.00013699,2]
[408777683,1774233035701,-100.2047357,0.00013699,2]
[408777684,1774233035725,-249.7952643,0.00013699,2]
[408777685,1774233035736,-102.16222215,0.00013699,2]
[408777686,1774233035760,-247.83777785,0.00013699,2]
[408777687,1774233035770,-350.0,0.00013699,2]
[408777688,1774233035781,-350.0,0.00013699,2]
[408777689,1774233035791,-350.0,0.00013699,2]
[408777690,1774233035801,-350.0,0.00013699,2]
[408777691,1774233035811,-350.0,0.00013699,2]
[408777692,1774233035822,-350.0,0.00013699,2]
[408777693,1774233035833,-350.0,0.00013699,2]
[408777694,1774233035842,-350.0,0.00013699,2]
[408777695,1774233035853,-350.0,0.00013699,2]
[408777696,1774233035864,-350.0,0.00013699,2]
[408777697,1774233035873,-350.000004,0.00013699,2]
[408777698,1774233035883,-500.0,0.00013699,2]
[408777699,1774233035893,-500.0,0.00013699,2]
[408777700,1774233035903,-500.0,0.00013699,2]
[408777701,1774233035912,-500.0,0.00013699,2]
[408777702,1774233035922,-165.07564481,0.00013699,2]
[408777703,1774233035949,-334.92435519,0.00013699,2]
[408777704,1774233035959,-195.20233523,0.00013699,2]
[408777705,1774233035970,-304.79766477,0.00013699,2]
[408777706,1774233035984,-500.0,0.00013699,2]
[408777707,1774233035994,-500.0,0.00013699,2]
[408777708,1774233036005,-500.0,0.00013699,2]
[408777709,1774233036014,-441.08358747,0.00013699,2]
[408777710,1774233036026,-60.17854042,0.00013699,2]
[408777711,1774233036036,-393.94020734,0.00013699,2]
[408777712,1774233037456,-234.22306978,0.00013681,2]
[408777713,1774233037468,-70.85473755,0.00013699,2]
[408777714,1774233037478,-500.0,0.00013699,2]
[408777715,1774233037487,-500.80135054,0.00013699,2]
[408777716,1774233037498,-500.0,0.00013699,2]
[408777717,1774233037508,-500.84372021,0.00013699,2]
[408777718,1774233037517,-384.33225156,0.00013699,2]
[408777719,1774233037527,-500.0,0.00013699,2]
[408777720,1774233037538,-500.0,0.00013699,2]
[408777721,1774233037547,-501.20618875,0.00013699,2]
[408777722,1774233037557,-500.91260574,0.00013699,2]
[408777723,1774233037567,-284.97830889,0.00013699,2]
[408777724,1774233037576,-500.78498231,0.00013699,2]
[408777725,1774233037586,-313.76801072,0.00013699,2]
[408777726,1774233037596,-500.25552119,0.00013699,2]
[408777727,1774233037606,-500.0,0.00013699,2]
[408777728,1774233037616,-500.0,0.00013699,2]
[408777729,1774233037625,-10.39337987,0.00013699,2]
[408777730,1774233037637,-489.60662013,0.00013699,2]
[408777731,1774233037647,-501.13449884,0.00013699,2]
[408777732,1774233037657,-500.0,0.00013699,2]
[408777733,1774233037667,-501.02049885,0.00013699,2]
[408777734,1774233037676,-162.80672839,0.00013699,2]
[408777735,1774233037685,-501.21573311,0.00013699,2]
[408777736,1774233037694,-500.40987165,0.00013699,2]
[408777737,1774233037704,-500.27560612,0.00013699,2]
[408777738,1774233037713,-500.0,0.00013699,2]
[408777739,1774233037723,-166.53635782,0.00013699,2]
[408777741,1774233037731,-500.0,0.00013699,2]
[408777743,1774233037740,-164.08314155,0.00013699,2]
[408777745,1774233037749,-13774.04291856,0.00013699,2]
[408777770,1774233039787,-644.20590704,0.00013699,2]
[408777771,1774233039839,-500.0,0.00013699,2]
[408777772,1774233039946,-15081.7411744,0.00013699,2]
[408777773,1774233039955,-3392.4,0.00013699,2]
[408777774,1774233039965,-151.0,0.00013699,2]
[408777775,1774233039974,-498.10906456,0.00013699,2]
[408777776,1774233039983,-846.08,0.000137,2]
[408777777,1774233039995,-791.6,0.000137,2]
[408777778,1774233040006,-491.54,0.000137,2]
[408777779,1774233040015,-365.17,0.000137,2]
[408777780,1774233040024,-152.0,0.00013707,17]
[408777781,1774233040034,-160.56,0.00013726,2]
[408777782,1774233040046,-167.99,0.00013726,2]
[408777783,1774233040056,-167.99,0.00013726,2]
[408777784,1774233040066,-231.0,0.00013763,2]
[408777785,1774233040075,-3223.0,0.00013767,2]
[408777786,1774233040084,-152.0,0.00013789,18]
[408777787,1774233040093,-231.0,0.00013792,2]
[408777788,1774233040103,-1600.0,0.00013808,2]
[408777789,1774233040112,-231.0,0.00013827,2]
[408777790,1774233040121,-168.0,0.00013848,2]
[408777791,1774233040130,-231.0,0.00013863,2]
[408777793,1774233040581,-152.0,0.0001387,19]
[408777794,1774233040591,-3223.0,0.00013871,2]
[408777795,1774233040600,-715.7769744,0.00013876,2]
[408777796,1774233040610,-874.4290492,0.00013876,2]
[408777797,1774233040619,-231.0,0.0001388,2]
[408777798,1774233040629,-651.33,0.00013884,30]
[408777799,1774233040638,-2000.0,0.00013902,2]
[408777800,1774233040647,-152.0,0.00013952,20]
[408777801,1774233040658,-979.16666667,0.00013977,2]
[408777802,1774233040667,-160.0,0.00013977,2]
[408777803,1774233040677,-181.85,0.00013981,2]
[408777804,1774233040686,-501.0,0.00014,2]
[408777805,1774233040696,-152.0,0.00014034,21]
[408777806,1774233040706,-150.25811759,0.00014044,5]
[408777807,1774233040716,-721.12765535,0.00014079,2]
[408777808,1774233040725,-209.40437684,0.0001408,2]
[408777809,1774233040733,-3000.0,0.00014082,2]
[408777810,1774233040743,-1500.0,0.00014082,2]
[408777811,1774233040752,-151.0,0.0001409,2]
[408777812,1774233040761,-278.43379,0.0001409,2]
[408777813,1774233040771,-274.634,0.0001409,2]
[408777814,1774233040780,-1263.621,0.0001409,2]
[408777815,1774233040789,-1299.352,0.0001409,2]
[408777816,1774233040798,-926.587,0.0001409,2]
[408777817,1774233040808,-3515.0,0.0001409,2]
[408777818,1774233040817,-622.211,0.0001409,2]
[408777819,1774233040826,-168.0,0.00014092,2]
[408777820,1774233040837,-152.0,0.00014115,22]
[408777821,1774233040848,-152.0,0.00014197,23]
[408777822,1774233040857,-2640.74356685,0.000142,2]
[408777823,1774233040867,-25121.33142322,0.0001422,2]
[408777824,1774233040877,-500.0,0.00014247,2]
[408777825,1774233040888,-500.76215645,0.00014247,2]
[408777826,1774233040898,-502.35924996,0.00014247,2]
[408777827,1774233040909,-505.85933034,0.00014247,2]
[408777828,1774233040918,-501.1635301,0.00014247,2]
[408777829,1774233040927,-501.28156283,0.00014247,2]
[408777830,1774233040937,-733.43561001,0.00014247,2]
[408777831,1774233040946,-1002.93024548,0.00014247,2]
[408777832,1774233040955,-501.31011535,0.00014247,2]
[408777833,1774233040965,-501.23288456,0.00014247,2]
[408777834,1774233040974,-316.52454984,0.00014247,2]
[408777835,1774233040983,-500.58525136,0.00014247,2]
[408777836,1774233040993,-502.46732951,0.00014247,2]
[408777837,1774233041003,-1007.74865056,0.00014247,2]
[408777838,1774233041012,-258.98143984,0.00014247,2]
[408777839,1774233041021,-789.56002788,0.00014247,2]
[408777840,1774233041030,-838.55558943,0.00014247,2]
[408777841,1774233041039,-1000.0,0.00014247,2]
[408777842,1774233041052,-152.0,0.00014278,24]
[408777843,1774233041061,-152.0,0.0001436,25]
[408777844,1774233041070,-168.0,0.00014371,2]
[408777845,1774233041080,-1014.83,0.00014384,2]
[408777846,1774233041092,-922.99,0.00014414,2]
[408777847,1774233041101,-152.0,0.00014442,26]
[408777848,1774233041110,-150.0,0.00014489,2]
[408777849,1774233041120,-150.0,0.00014489,2]
[408777850,1774233041129,-150.116,0.00014489,2]
[408777851,1774233041138,-150.0,0.00014489,2]
[408777852,1774233041146,-150.0,0.00014489,2]
[408777853,1774233041155,-150.0,0.00014489,2]
[408777854,1774233041165,-150.062,0.00014489,2]
[408777855,1774233041174,-150.101,0.00014489,2]
[408777856,1774233041184,-150.0,0.00014489,2]
[408777857,1774233041193,-156.47,0.000145,2]
[408777858,1774233041202,-164.1686,0.000145,2]
[408777859,1774233041211,-152.0,0.00014523,27]
[408777860,1774233041220,-781.6,0.00014565,30]
[408777861,1774233041230,-151.0,0.00014571,2]
[408777862,1774233041239,-181.85,0.00014589,2]
[408777863,1774233041249,-491.54,0.000146,2]
[408777864,1774233041258,-365.17,0.000146,2]
[408777865,1774233041267,-152.0,0.00014605,28]
[408777866,1774233041276,-217.95298454,0.00014628,2]
[408777867,1774233041287,-1026.0,0.00014639,2]
[408777868,1774233041296,-1152.0,0.0001464,2]
[408777869,1774233041306,-4609.0,0.0001464,2]
[408777870,1774233041315,-3413.22,0.00014678,2]
[408777871,1774233041324,-152.0,0.00014686,29]
[408777872,1774233041334,-846.08,0.000147,2]
[408777873,1774233041344,-791.6,0.000147,2]
[408777874,1774233041356,-408.39121232,0.00014749,2]
[408777875,1774233041367,-2640.74356685,0.00014767,2]
[408777876,1774233041378,-152.0,0.00014768,30]
[408777877,1774233041387,-267.59433828,0.00014768,2]
[408777878,1774233041396,-501.0,0.00014776,2]
[408777879,1774233041406,-25121.33142322,0.0001478,2]
[408777880,1774233041416,-150.09201891,0.00014795,2]
[408777881,1774233041425,-281.42,0.00014849,2]
[408777882,1774233041435,-152.0,0.0001485,31]
[408777883,1774233041444,-152.0,0.000149,2]
[408777884,1774233041455,-152.0,0.000149,2]
[408777885,1774233041464,-1280.1,0.00014929,2]
[408777886,1774233041474,-152.0,0.00014931,32]
[408777887,1774233041484,-154.52521988,0.00014978,2]
[408777888,1774233041494,-300.0,0.00015,2]
[408777889,1774233041502,-1003.73,0.00015,2]
[408777890,1774233041512,-152.0,0.00015013,33]
[408777891,1774233041521,-711.0,0.00015037,2]
[408777892,1774233041530,-238.15540996,0.00015054,2]
[408777893,1774233041538,-224.502071,0.00015068,2]
[408777894,1774233041549,-1014.83,0.00015068,2]
[408777895,1774233041558,-524.17,0.00015068,2]
[408777896,1774233041567,-152.0,0.00015094,34]
[408777897,1774233041576,-711.0,0.00015122,2]
[408777898,1774233041585,-7631.61831699,0.00015156,2]
[408777899,1774233041594,-2000.0,0.00015166,2]
[408777900,1774233041603,-5888.0,0.0001517,2]
[408777901,1774233041612,-152.0,0.00015176,35]
[408777902,1774233041621,-1600.0,0.00015178,2]
[408777903,1774233041630,-181.85,0.00015197,2]
[408777904,1774233041639,-10000.0,0.00015205,2]
[408777905,1774233041648,-711.0,0.00015245,2]
[408777906,1774233041657,-911.87,0.00015246,30]
[408777907,1774233041666,-4681.0,0.00015246,2]
[408777908,1774233041676,-152.0,0.00015258,36]
[408777909,1774233041685,-152.0,0.000153,2]
[408777910,1774233041694,-152.0,0.000153,2]
[408777911,1774233041703,-150.0,0.000153,2]
[408777912,1774233041713,-2640.74356685,0.00015333,2]
[408777913,1774233041723,-152.0,0.00015339,37]
[408777914,1774233041732,-25121.33142322,0.0001534,2]
[408777915,1774233041742,-1500.0,0.00015366,2]
[408777916,1774233041751,-152.0,0.00015421,38]
[408777917,1774233041760,-1500.0,0.00015452,2]
[408777918,1774233041769,-3000.0,0.00015452,2]
[408777919,1774233041778,-500.0,0.00015452,2]
[408777920,1774233041787,-4681.0,0.00015468,2]
[408777921,1774233041796,-199.0,0.00015475,2]
[408777922,1774233041806,-300.0,0.000155,2]
[408777923,1774233041816,-491.54,0.000155,2]
[408777924,1774233041826,-365.17,0.000155,2]
[408777925,1774233041835,-152.0,0.00015502,39]
[408777926,1774233041845,-3297.14,0.00015507,2]
[408777927,1774233041854,-501.0,0.00015553,3]
[408777928,1774233041865,-646.80531611,0.00015567,2]
[408777929,1774233041874,-152.0,0.00015584,40]
[408777930,1774233041886,-300.0,0.000156,3]
[408777931,1774233041897,-4681.0,0.00015643,2]
[408777932,1774233041907,-150.0,0.00015649,2]
[408777933,1774233041916,-152.0,0.00015665,41]
[408777934,1774233041927,-4681.0,0.00015671,2]
[408777935,1774233041936,-1543.05050683,0.0001568,2]
[408777936,1774233041946,-846.08,0.000157,2]
[408777937,1774233041954,-791.6,0.000157,2]
[408777938,1774233041963,-152.0,0.00015747,42]
[408777939,1774233041974,-1014.83,0.00015753,2]
[408777940,1774233041987,-181.85,0.00015805,2]
[408777941,1774233041996,-152.0,0.00015829,43]
[408777942,1774233042005,-1204.77,0.00015862,2]
[408777943,1774233042014,-250.0,0.0001589,2]
[408777944,1774233042023,-3297.14,0.00015895,2]
[408777945,1774233042033,-478.44101253,0.00015899,2]
[408777946,1774233042044,-500.0,0.00015899,2]
[408777947,1774233042056,-500.0,0.00015899,2]
[408777948,1774233042066,-500.0,0.00015899,2]
[408777949,1774233042076,-152.0,0.000159,2]
[408777950,1774233042085,-152.0,0.000159,2]
[408777951,1774233042094,-152.0,0.000159,2]
[408777952,1774233042104,-169.1829,0.000159,2]
[408777953,1774233042113,-25121.33142322,0.000159,2]
[408777954,1774233042124,-2524.95383292,0.000159,2]
[408777959,1774233043922,-115.78973393,0.000159,2]
[408777960,1774233043932,-6915.54652971,0.000159,2]
[408777961,1774233043941,-1071.73216026,0.000159,2]
[408777962,1774233043950,-336.01956706,0.000159,2]
[408777963,1774233043959,-167.1699601,0.000159,2]
[408777964,1774233043968,-408.39121232,0.000159,2]
[408777965,1774233043977,-152.0,0.0001591,44]
[408777966,1774233043985,-1042.13,0.00015927,30]
[408777967,1774233043995,-25000.0,0.00015965,3]
[408777968,1774233044004,-163.0,0.00015973,2]
[408777969,1774233044013,-507.01283939,0.00015973,2]
[408777970,1774233044023,-25000.0,0.00015974,3]
[408777971,1774233044032,-291.03718971,0.0001599,2]
[408777972,1774233044041,-291.03718971,0.0001599,2]
[408777973,1774233044056,-152.0,0.00015992,45]
[408777974,1774233044065,-500.0,0.00015998,6]
[408777975,1774233044074,-500.0,0.00015999,9]
[408777976,1774233044086,-500.0,0.00015999,10]
[408777977,1774233044095,-500.0,0.00015999,11]
[408777978,1774233044105,-500.0,0.00015999,12]
[408777979,1774233044115,-500.0,0.00015999,13]
[408777980,1774233044123,-500.0,0.00015999,14]
[408777981,1774233044133,-500.0,0.00015999,15]
[408777982,1774233044142,-500.0,0.00015999,16]
[408777983,1774233044151,-500.0,0.00015999,17]
[408777984,1774233044161,-500.0,0.00015999,19]
[408777985,1774233044169,-500.0,0.00015999,20]
[408777986,1774233044178,-500.0,0.00015999,21]
[408777987,1774233044187,-500.0,0.00015999,21]
[408777988,1774233044196,-500.0,0.00015999,21]
[408777989,1774233044205,-522.86323272,0.00015999,21]
[408777990,1774233044215,-500.0,0.00015999,9]
[408777991,1774233044224,-500.0,0.00015999,10]
[408777992,1774233044234,-500.0,0.00015999,11]
[408777993,1774233044244,-500.0,0.00015999,12]
[408777994,1774233044253,-500.0,0.00015999,13]
[408777995,1774233044262,-500.0,0.00015999,14]
[408777996,1774233044271,-500.0,0.00015999,15]
[408777997,1774233044280,-500.0,0.00015999,16]
[408777998,1774233044290,-500.0,0.00015999,17]
[408777999,1774233044298,-500.0,0.00015999,18]
[408778000,1774233044308,-162.87297565,0.00015999,19]
[408778001,1774233044317,-500.0,0.00015999,7]
[408778002,1774233044326,-500.0,0.00015999,8]
[408778003,1774233044336,-17865.7524692,0.00016,2]
[408778004,1774233044751,-900.05641542,0.0001386,2]
[408778005,1774233044767,-149.66758458,0.0001386,2]
[408778006,1774233044779,-2658.15181065,0.00016,2]
[408778007,1774233044792,-506407.93396993,0.00016,2]
[408778008,1774233045599,-1000.0,0.00010799,2]
[408778009,1774233045609,-151.0,0.00011419,2]
[408778010,1774233045619,-151.0,0.00011801,2]
[408778011,1774233045628,-151.0,0.00011912,2]
[408778012,1774233045638,-151.0,0.00012113,2]
[408778013,1774233045648,-5.71,0.00012539,2]
[408778022,1774234231533,-1000.0,0.00010799,2]
[408778023,1774234231542,-250.0,0.00010799,2]
[408778024,1774234231552,-85.71052593,0.00010799,2]
[408778025,1774234231621,-175.28947407,0.00010799,2]
[408778026,1774234231630,-200.0,0.00011,2]
[408778027,1774234231639,-124.71052593,0.00011,2]
[408778028,1774234231650,-31.72947407,0.00011,2]
[408778029,1774234231660,-200.0,0.000111,2]
[408778030,1774234231669,-200.0,0.000112,2]
[408778031,1774234231679,-2550.4,0.00011507,2]
[408778032,1774234231688,-250.0,0.00011879,2]
[408778033,1774234231698,-250.0,0.00011879,2]
[408778034,1774234231707,-364.68760644,0.00011885,2]
[408778035,1774234231717,-166.66,0.00012212,2]
[408778036,1774234231727,-1200.0,0.00012295,2]
[408778037,1774234231736,-578.20924308,0.00012296,2]
[408778038,1774234231745,-174.61919141,0.00012296,2]
[408778039,1774234231754,-150.0,0.00012306,2]
[408778040,1774234231763,-166.66,0.00012469,2]
[408778041,1774234231772,-181.85,0.0001248,2]
[408778042,1774234231782,-300.0,0.00012498,2]
[408778043,1774234231793,-500.0,0.000125,2]
[408778044,1774234231802,-500.0,0.000125,2]
[408778046,1774234231812,-500.0,0.000125,2]
[408778048,1774234231821,-500.0,0.000125,2]
[408778050,1774234231831,-500.0,0.000125,2]
[408778052,1774234231840,-155.0,0.00012539,3]
[408778054,1774234231849,-1208.81,0.00012625,2]
[408778056,1774234231858,-166.66,0.00012727,2]
[408778058,1774234231867,-252.73816997,0.00012844,2]
[408778060,1774234231877,-9999.99,0.00012893,2]
[408778062,1774234231886,-299.99,0.00012893,2]
[408778064,1774234231895,-166.66,0.00012984,2]
[408778066,1774234231904,-213.82717514,0.00013,2]
[408778068,1774234231916,-36.17282486,0.00013,2]
[408778070,1774234231926,-155.0,0.00013096,3]
[408778072,1774234231936,-65.26305229,0.00013191,2]
[408778074,1774234231957,-84.73694771,0.00013191,2]
[408778075,1774234231967,-500.0,0.00013192,2]
[408778076,1774234231976,-504.18387071,0.00013192,2]
[408778077,1774234237539,-191.21406116,0.00013192,2]
[408778078,1774234237549,-500.0,0.00013192,2]
[408778079,1774234237559,-500.0,0.00013192,2]
[408778080,1774234237569,-500.0,0.00013192,2]
[408778081,1774234237579,-0.62743395,0.00013192,2]
[408778082,1774234237609,-499.37256605,0.00013192,2]
[408778083,1774234237618,-210.14189457,0.00013192,2]
[408778084,1774234237699,-289.85810543,0.00013192,2]
[408778085,1774234237708,-271.25770622,0.00013192,2]
[408778107,1774234239749,-228.74229378,0.00013192,2]
[408778108,1774234239758,-500.0,0.00013192,2]
[408778109,1774234239767,-151.0,0.00013192,2]
[408778110,1774234239777,-500.0,0.00013192,2]
[408778111,1774234239786,-151.0,0.00013192,2]
[408778112,1774234239795,-151.0,0.00013192,2]
[408778113,1774234239805,-151.0,0.00013192,2]
[408778114,1774234239814,-151.0,0.00013192,2]
[408778115,1774234239824,-500.0,0.00013192,2]
[408778116,1774234239833,-151.0,0.00013192,2]
[408778117,1774234239843,-500.0,0.00013192,2]
[408778118,1774234239852,-151.0,0.00013192,2]
[408778119,1774234239862,-500.0,0.00013192,2]
[408778120,1774234239871,-151.0,0.00013192,2]
[408778121,1774234239880,-500.0,0.00013192,2]
[408778122,1774234239894,-151.0,0.00013192,2]
[408778123,1774234239903,-500.0,0.00013192,2]
[408778124,1774234239913,-151.0,0.00013192,2]
[408778125,1774234239923,-500.0,0.00013192,2]
[408778126,1774234239933,-151.0,0.00013192,2]
[408778127,1774234239943,-151.0,0.00013192,2]
[408778128,1774234239952,-500.0,0.00013192,2]
[408778129,1774234239962,-500.0,0.00013192,2]
[408778130,1774234239972,-500.0,0.00013192,2]